[Event "*** SCC Grand Prix: Titled Tuesday Blitz"]
[Site "Chess.com"]
[Date "2020.07.14"]
[Round "8"]
[White "BakaPG"]
[Black "sorito"]
[Result "0-1"]
[WhiteElo "2626"]
[BlackElo "2472"]
[TimeControl "180+1"]
[EndTime "11:36:25 PDT"]
[Termination "sorito won by resignation"]

1. e4 {[%clk 0:03:00.9]} 1... e6 {[%clk 0:02:56]} 2. d4 {[%clk 0:02:59.6]} 2...
b6 {[%clk 0:02:54.8]} 3. Bd3 {[%clk 0:02:57]} 3... Bb7 {[%clk 0:02:55.1]} 4. Nf3
{[%clk 0:02:57]} 4... Nf6 {[%clk 0:02:51.7]} 5. Nbd2 {[%clk 0:02:54.1]} 5... d5
{[%clk 0:02:50.8]} 6. e5 {[%clk 0:02:53.6]} 6... Ne4 {[%clk 0:02:47.5]} 7. O-O
{[%clk 0:02:51.7]} 7... Be7 {[%clk 0:02:45.5]} 8. Re1 {[%clk 0:02:51.4]} 8...
Nxd2 {[%clk 0:02:43.6]} 9. Bxd2 {[%clk 0:02:50.6]} 9... a5 {[%clk 0:02:36]} 10.
b3 {[%clk 0:02:46.2]} 10... Nc6 {[%clk 0:02:33.4]} 11. c3 {[%clk 0:02:44.2]}
11... Ba6 {[%clk 0:02:29.8]} 12. Bxa6 {[%clk 0:02:41.1]} 12... Rxa6 {[%clk
0:02:29.6]} 13. Rc1 {[%clk 0:02:40.5]} 13... a4 {[%clk 0:02:25.2]} 14. g3 {[%clk
0:02:36.5]} 14... axb3 {[%clk 0:02:24.9]} 15. axb3 {[%clk 0:02:36.5]} 15... O-O
{[%clk 0:02:24.1]} 16. h4 {[%clk 0:02:35.5]} 16... Ra2 {[%clk 0:02:18.4]} 17.
Kg2 {[%clk 0:02:28.4]} 17... Qd7 {[%clk 0:02:18.4]} 18. Rc2 {[%clk 0:02:25.3]}
18... Rfa8 {[%clk 0:02:16.5]} 19. Rxa2 {[%clk 0:02:24.2]} 19... Rxa2 {[%clk
0:02:16.4]} 20. Qb1 {[%clk 0:02:24.3]} 20... Ra3 {[%clk 0:02:16.4]} 21. Bc1
{[%clk 0:02:21]} 21... Ra7 {[%clk 0:02:14.5]} 22. Bg5 {[%clk 0:02:19.4]} 22...
Bf8 {[%clk 0:02:13.8]} 23. h5 {[%clk 0:02:18.1]} 23... h6 {[%clk 0:02:10.1]} 24.
Bf4 {[%clk 0:02:17.5]} 24... Qc8 {[%clk 0:02:10.8]} 25. g4 {[%clk 0:02:16.4]}
25... Qa6 {[%clk 0:02:10.4]} 26. g5 {[%clk 0:02:10.4]} 26... Qa2 {[%clk
0:02:10.4]} 27. Qd1 {[%clk 0:02:08.8]} 27... Qb2 {[%clk 0:02:05.9]} 28. gxh6
{[%clk 0:01:59.8]} 28... Ra2 {[%clk 0:02:05]} 29. Be3 {[%clk 0:01:55]} 29...
gxh6 {[%clk 0:02:04.9]} 30. Nh2 {[%clk 0:01:51.5]} 30... Qc2 {[%clk 0:02:02.9]}
31. Qf3 {[%clk 0:01:47.8]} 31... Ne7 {[%clk 0:01:53.2]} 32. Rg1 {[%clk
0:01:46.9]} 32... Nf5 {[%clk 0:01:53.5]} 33. Kh1+ {[%clk 0:01:37.3]} 33... Kh7
{[%clk 0:01:53.2]} 34. Ng4 {[%clk 0:01:37.6]} 34... Bg7 {[%clk 0:01:52.8]} 35.
Kh2 {[%clk 0:01:28.7]} 35... Qe4 {[%clk 0:01:52.6]} 36. Qxe4 {[%clk 0:01:27.6]}
36... dxe4 {[%clk 0:01:52.9]} 37. Rc1 {[%clk 0:01:23.9]} 37... Rb2 {[%clk
0:01:52.9]} 38. b4 {[%clk 0:01:21.2]} 38... b5 {[%clk 0:01:53.4]} 39. Kg2 {[%clk
0:01:19.9]} 39... c6 {[%clk 0:01:43.7]} 40. Ra1 {[%clk 0:01:16.7]} 40... Rb3
{[%clk 0:01:31.2]} 41. Ra7 {[%clk 0:01:13.5]} 41... Kg8 {[%clk 0:01:12.7]} 42.
Bd2 {[%clk 0:00:56.8]} 42... Rb2 {[%clk 0:01:10.6]} 43. Bf4 {[%clk 0:00:55.8]}
43... Rc2 {[%clk 0:01:04.2]} 44. Nf6+ {[%clk 0:00:53.1]} 44... Bxf6 {[%clk
0:00:56.8]} 45. exf6 {[%clk 0:00:53.1]} 45... e3 {[%clk 0:00:55.6]} 46. Ra8+
{[%clk 0:00:20.5]} 46... Kh7 {[%clk 0:00:55.1]} 47. Rf8 {[%clk 0:00:20.7]} 47...
Rxf2+ {[%clk 0:00:50.3]} 48. Kh3 {[%clk 0:00:18]} 48... Rxf4 {[%clk 0:00:49]}
49. Rxf7+ {[%clk 0:00:18.2]} 49... Kg8 {[%clk 0:00:49.2]} 50. Ra7 {[%clk
0:00:15.6]} 50... e2 {[%clk 0:00:47.8]} 51. f7+ {[%clk 0:00:15.2]} 51... Kf8
{[%clk 0:00:47.6]} 0-1

[Event "*** SCC Grand Prix: Titled Tuesday Blitz"]
[Site "Chess.com"]
[Date "2020.07.14"]
[Round "8"]
[White "GelmanAlexander"]
[Black "GOGIEFF"]
[Result "0-1"]
[WhiteElo "2613"]
[BlackElo "2905"]
[TimeControl "180+1"]
[EndTime "11:36:26 PDT"]
[Termination "GOGIEFF won by resignation"]

1. c4 {[%clk 0:03:00.9]} 1... Nf6 {[%clk 0:02:59]} 2. Nf3 {[%clk 0:02:58]} 2...
g6 {[%clk 0:02:59.2]} 3. e3 {[%clk 0:02:57.4]} 3... Bg7 {[%clk 0:02:59.3]} 4.
Be2 {[%clk 0:02:58]} 4... O-O {[%clk 0:02:59.2]} 5. O-O {[%clk 0:02:58.5]} 5...
c5 {[%clk 0:02:57.6]} 6. d3 {[%clk 0:02:58.3]} 6... Nc6 {[%clk 0:02:56.4]} 7. a3
{[%clk 0:02:58.4]} 7... d5 {[%clk 0:02:56.1]} 8. cxd5 {[%clk 0:02:58.7]} 8...
Nxd5 {[%clk 0:02:55.5]} 9. Nbd2 {[%clk 0:02:58.9]} 9... b6 {[%clk 0:02:52.6]}
10. Qc2 {[%clk 0:02:59.4]} 10... Bb7 {[%clk 0:02:52.2]} 11. Ne4 {[%clk 0:03:00]}
11... Rc8 {[%clk 0:02:50.1]} 12. Bd2 {[%clk 0:03:00.6]} 12... h6 {[%clk
0:02:45.4]} 13. Rac1 {[%clk 0:03:01.1]} 13... e6 {[%clk 0:02:33.8]} 14. Qb1
{[%clk 0:03:00.5]} 14... Qe7 {[%clk 0:02:32.2]} 15. Rfd1 {[%clk 0:03:00.4]}
15... Rfd8 {[%clk 0:02:29]} 16. h3 {[%clk 0:03:00.1]} 16... f5 {[%clk
0:02:25.3]} 17. Ng3 {[%clk 0:02:59.8]} 17... Kh7 {[%clk 0:02:17.5]} 18. Re1
{[%clk 0:02:59]} 18... e5 {[%clk 0:02:11.4]} 19. h4 {[%clk 0:02:55.8]} 19... Nf6
{[%clk 0:02:08.2]} 20. Bc3 {[%clk 0:02:50.5]} 20... a5 {[%clk 0:02:02.9]} 21. h5
{[%clk 0:01:54.6]} 21... Nxh5 {[%clk 0:02:01.9]} 22. Nxh5 {[%clk 0:01:54.2]}
22... gxh5 {[%clk 0:02:02.8]} 23. Nh2 {[%clk 0:01:17.8]} 23... h4 {[%clk
0:02:02.5]} 24. Bf3 {[%clk 0:01:13.5]} 24... Bf6 {[%clk 0:01:57.6]} 25. Kh1
{[%clk 0:01:09.1]} 25... Rg8 {[%clk 0:01:56.6]} 26. Qc2 {[%clk 0:01:08.1]} 26...
Rg7 {[%clk 0:01:49.6]} 27. Rg1 {[%clk 0:01:07.8]} 27... Rcg8 {[%clk 0:01:48.4]}
28. Qe2 {[%clk 0:01:06.4]} 28... Nd8 {[%clk 0:01:41]} 29. Bxb7 {[%clk
0:01:03.9]} 29... Qxb7 {[%clk 0:01:40.6]} 30. e4 {[%clk 0:01:04.6]} 30... f4
{[%clk 0:01:38.4]} 31. Qh5 {[%clk 0:01:00.4]} 31... Qd7 {[%clk 0:01:30.5]} 32.
Rcd1 {[%clk 0:00:52.1]} 32... Nf7 {[%clk 0:01:29.9]} 33. Nf3 {[%clk 0:00:48.7]}
33... a4 {[%clk 0:01:22.5]} 34. Kh2 {[%clk 0:00:35.6]} 34... Qe6 {[%clk
0:01:20.3]} 35. Qf5+ {[%clk 0:00:31.5]} 35... Qxf5 {[%clk 0:01:17.9]} 36. exf5
{[%clk 0:00:32.4]} 36... Rd8 {[%clk 0:01:15.7]} 37. Rge1 {[%clk 0:00:31.5]}
37... Rd5 {[%clk 0:01:14.8]} 38. Kh3 {[%clk 0:00:27.1]} 38... h5 {[%clk
0:01:14.9]} 39. Re2 {[%clk 0:00:21.8]} 39... Kh6 {[%clk 0:01:14.9]} 40. Rf1
{[%clk 0:00:21.9]} 40... Ng5+ {[%clk 0:01:13.2]} 41. Nxg5 {[%clk 0:00:21.9]}
41... Kxg5 {[%clk 0:01:14.1]} 42. Rfe1 {[%clk 0:00:17]} 42... Kxf5 {[%clk
0:01:13.9]} 43. Re4 {[%clk 0:00:14.4]} 43... Re7 {[%clk 0:01:13.6]} 44. Rxa4
{[%clk 0:00:13.7]} 44... Rxd3+ {[%clk 0:01:13.2]} 45. f3 {[%clk 0:00:14.6]}
45... Rg7 {[%clk 0:01:10.1]} 46. Re2 {[%clk 0:00:14.5]} 46... Rg3+ {[%clk
0:01:09.6]} 47. Kh2 {[%clk 0:00:14.5]} 47... h3 {[%clk 0:01:10.1]} 48. Ra8
{[%clk 0:00:11.1]} 48... hxg2 {[%clk 0:01:08.8]} 49. Rxg2 {[%clk 0:00:11.9]}
49... Rdxf3 {[%clk 0:01:08.7]} 50. Rxg3 {[%clk 0:00:11.6]} 50... Rxg3 {[%clk
0:01:06.8]} 51. Rf8 {[%clk 0:00:11]} 51... h4 {[%clk 0:01:06.7]} 52. Be1 {[%clk
0:00:08.4]} 52... e4 {[%clk 0:01:02.4]} 53. Bxg3 {[%clk 0:00:08.2]} 53... hxg3+
{[%clk 0:01:03.3]} 54. Kg2 {[%clk 0:00:07.9]} 54... Ke6 {[%clk 0:01:02.8]} 55.
Re8+ {[%clk 0:00:07.7]} 55... Kd5 {[%clk 0:01:02.9]} 56. Rd8+ {[%clk 0:00:07.7]}
56... Kc4 {[%clk 0:01:01]} 57. Rf8 {[%clk 0:00:07.9]} 57... Be5 {[%clk
0:01:00.8]} 58. Rf5 {[%clk 0:00:07.4]} 58... f3+ {[%clk 0:01:01]} 59. Kf1 {[%clk
0:00:07.9]} 59... g2+ {[%clk 0:01:01.1]} 0-1

[Event "*** SCC Grand Prix: Titled Tuesday Blitz"]
[Site "Chess.com"]
[Date "2020.07.14"]
[Round "8"]
[White "freshfoodcompany"]
[Black "SHIVACalypso"]
[Result "1/2-1/2"]
[WhiteElo "2277"]
[BlackElo "2440"]
[TimeControl "180+1"]
[EndTime "11:36:26 PDT"]
[Termination "Game drawn by repetition"]

1. d4 {[%clk 0:03:00.9]} 1... e6 {[%clk 0:02:58.2]} 2. c4 {[%clk 0:03:00.5]}
2... Nf6 {[%clk 0:02:57.9]} 3. Nc3 {[%clk 0:03:00.3]} 3... Bb4 {[%clk
0:02:57.8]} 4. e3 {[%clk 0:03:00.5]} 4... O-O {[%clk 0:02:56.3]} 5. Bd3 {[%clk
0:03:00.4]} 5... d5 {[%clk 0:02:55.6]} 6. Nf3 {[%clk 0:02:59]} 6... c5 {[%clk
0:02:55.3]} 7. O-O {[%clk 0:02:58.4]} 7... cxd4 {[%clk 0:02:53.9]} 8. exd4
{[%clk 0:02:57.3]} 8... dxc4 {[%clk 0:02:53.8]} 9. Bxc4 {[%clk 0:02:57.1]} 9...
b6 {[%clk 0:02:54.2]} 10. Bg5 {[%clk 0:02:52.3]} 10... Bb7 {[%clk 0:02:52.8]}
11. a3 {[%clk 0:02:48.5]} 11... Be7 {[%clk 0:02:52.3]} 12. Qe2 {[%clk
0:02:36.1]} 12... h6 {[%clk 0:02:51.8]} 13. Bh4 {[%clk 0:02:35]} 13... Nbd7
{[%clk 0:02:41.4]} 14. Rfd1 {[%clk 0:02:32.3]} 14... Rc8 {[%clk 0:02:36.6]} 15.
Ne5 {[%clk 0:02:17.9]} 15... Nxe5 {[%clk 0:01:41.8]} 16. dxe5 {[%clk 0:02:13.4]}
16... Nd5 {[%clk 0:01:41.9]} 17. Nxd5 {[%clk 0:01:59]} 17... exd5 {[%clk
0:01:36.5]} 18. Bxe7 {[%clk 0:01:54.3]} 18... Qxe7 {[%clk 0:01:35.7]} 19. Bxd5
{[%clk 0:01:54.3]} 19... Bxd5 {[%clk 0:01:24.1]} 20. Rxd5 {[%clk 0:01:53.3]}
20... Rfd8 {[%clk 0:01:16.6]} 21. Rxd8+ {[%clk 0:01:50.6]} 21... Rxd8 {[%clk
0:01:17.5]} 22. h3 {[%clk 0:01:45.1]} 22... Rd5 {[%clk 0:01:10.5]} 23. f4 {[%clk
0:01:39]} 23... Qc5+ {[%clk 0:01:09.7]} 24. Kh2 {[%clk 0:01:32.1]} 24... Qd4
{[%clk 0:01:09.1]} 25. Rf1 {[%clk 0:01:23.6]} 25... Qd2 {[%clk 0:00:40.6]} 26.
Qf3 {[%clk 0:01:12.1]} 26... Rd3 {[%clk 0:00:35.3]} 27. Qa8+ {[%clk 0:01:10.1]}
27... Kh7 {[%clk 0:00:34.1]} 28. Qe4+ {[%clk 0:01:08.8]} 28... Kg8 {[%clk
0:00:30.7]} 29. e6 {[%clk 0:01:06]} 29... fxe6 {[%clk 0:00:29.7]} 30. Qxe6+
{[%clk 0:01:05.6]} 30... Kh7 {[%clk 0:00:29.2]} 31. Qe4+ {[%clk 0:01:03.5]}
31... Kh8 {[%clk 0:00:27.9]} 32. f5 {[%clk 0:00:55.6]} 32... Re3 {[%clk
0:00:25.5]} 33. Qf4 {[%clk 0:00:50.3]} 33... Re2 {[%clk 0:00:22.4]} 34. Qg3
{[%clk 0:00:27.4]} 34... Re3 {[%clk 0:00:16.4]} 35. Qg6 {[%clk 0:00:16.4]} 35...
Qxb2 {[%clk 0:00:10.4]} 36. f6 {[%clk 0:00:14.8]} 36... Qe5+ {[%clk 0:00:09.9]}
37. Kh1 {[%clk 0:00:13.1]} 37... gxf6 {[%clk 0:00:10]} 38. Qxh6+ {[%clk
0:00:13.3]} 38... Kg8 {[%clk 0:00:09]} 39. Qg6+ {[%clk 0:00:12.6]} 39... Kh8
{[%clk 0:00:08.6]} 40. Qh6+ {[%clk 0:00:12.6]} 40... Kg8 {[%clk 0:00:08.7]} 41.
Qg6+ {[%clk 0:00:12.9]} 41... Kh8 {[%clk 0:00:08.9]} 42. Qh6+ {[%clk 0:00:13.3]}
1/2-1/2

[Event "*** SCC Grand Prix: Titled Tuesday Blitz"]
[Site "Chess.com"]
[Date "2020.07.14"]
[Round "8"]
[White "Mikhail_Golubev"]
[Black "LastHeroJr"]
[Result "1-0"]
[WhiteElo "2599"]
[BlackElo "2456"]
[TimeControl "180+1"]
[EndTime "11:36:27 PDT"]
[Termination "Mikhail_Golubev won on time"]

1. e4 {[%clk 0:03:00.9]} 1... e5 {[%clk 0:02:58.2]} 2. Nf3 {[%clk 0:03:00.3]}
2... Nc6 {[%clk 0:02:58.6]} 3. Nc3 {[%clk 0:03:00.3]} 3... Nf6 {[%clk
0:02:56.9]} 4. d4 {[%clk 0:02:59.9]} 4... exd4 {[%clk 0:02:57.8]} 5. Nxd4 {[%clk
0:03:00.1]} 5... Bb4 {[%clk 0:02:57.9]} 6. Nxc6 {[%clk 0:03:00.2]} 6... bxc6
{[%clk 0:02:58.8]} 7. Bd3 {[%clk 0:03:00.2]} 7... d5 {[%clk 0:02:59]} 8. exd5
{[%clk 0:03:00.4]} 8... cxd5 {[%clk 0:02:59.9]} 9. O-O {[%clk 0:02:59.6]} 9...
O-O {[%clk 0:02:59.9]} 10. Bg5 {[%clk 0:02:59.6]} 10... c6 {[%clk 0:03:00.4]}
11. Na4 {[%clk 0:02:59.5]} 11... Re8 {[%clk 0:02:53.5]} 12. c4 {[%clk
0:02:53.6]} 12... h6 {[%clk 0:02:43.9]} 13. Bh4 {[%clk 0:02:49.6]} 13... Bd6
{[%clk 0:02:17.6]} 14. cxd5 {[%clk 0:02:48.4]} 14... cxd5 {[%clk 0:02:18.5]} 15.
Rc1 {[%clk 0:02:48.4]} 15... Be5 {[%clk 0:02:03.6]} 16. Bb5 {[%clk 0:02:28.4]}
16... Bd7 {[%clk 0:01:34.2]} 17. Bxd7 {[%clk 0:02:13.9]} 17... Qxd7 {[%clk
0:01:32]} 18. Nc5 {[%clk 0:02:12.5]} 18... Qd6 {[%clk 0:01:29.7]} 19. Bxf6
{[%clk 0:02:05.1]} 19... Bxf6 {[%clk 0:01:21]} 20. Nd3 {[%clk 0:02:03.5]} 20...
Rab8 {[%clk 0:01:09.2]} 21. Rc2 {[%clk 0:01:49.5]} 21... Qa6 {[%clk 0:00:53.7]}
22. a3 {[%clk 0:01:46.3]} 22... Qd6 {[%clk 0:00:46.9]} 23. Nb4 {[%clk
0:01:41.8]} 23... d4 {[%clk 0:00:46.6]} 24. Nd3 {[%clk 0:01:39.4]} 24... Re7
{[%clk 0:00:38.1]} 25. Qf3 {[%clk 0:01:36.4]} 25... Rbe8 {[%clk 0:00:37.9]} 26.
g3 {[%clk 0:01:32]} 26... Rb8 {[%clk 0:00:26.3]} 27. Rfc1 {[%clk 0:01:24.6]}
27... Rbe8 {[%clk 0:00:21.2]} 28. Rc6 {[%clk 0:01:19.1]} 28... Qd8 {[%clk
0:00:20.2]} 29. h4 {[%clk 0:01:07.8]} 29... Re6 {[%clk 0:00:18.7]} 30. Rc8
{[%clk 0:01:01]} 30... Qxc8 {[%clk 0:00:18.1]} 31. Rxc8 {[%clk 0:01:00.6]} 31...
Rxc8 {[%clk 0:00:19]} 32. Qb7 {[%clk 0:00:57]} 32... Rc2 {[%clk 0:00:11.8]} 33.
Qxa7 {[%clk 0:00:53.3]} 33... Rd2 {[%clk 0:00:11.2]} 34. Qa8+ {[%clk 0:00:49.1]}
34... Kh7 {[%clk 0:00:10.9]} 35. Qf3 {[%clk 0:00:48.6]} 35... Ree2 {[%clk
0:00:09.1]} 36. a4 {[%clk 0:00:45.2]} 36... Rxb2 {[%clk 0:00:06.2]} 37. Nxb2
{[%clk 0:00:32.2]} 37... Rxb2 {[%clk 0:00:07.1]} 38. a5 {[%clk 0:00:31.7]} 38...
Ra2 {[%clk 0:00:07]} 39. a6 {[%clk 0:00:31.7]} 39... Ra1+ {[%clk 0:00:05.9]} 40.
Kg2 {[%clk 0:00:31.1]} 40... Kg8 {[%clk 0:00:06.1]} 41. Qb7 {[%clk 0:00:28.9]}
41... d3 {[%clk 0:00:06.1]} 42. a7 {[%clk 0:00:29.1]} 1-0

[Event "*** SCC Grand Prix: Titled Tuesday Blitz"]
[Site "Chess.com"]
[Date "2020.07.14"]
[Round "8"]
[White "boasovietica"]
[Black "andy_rekt"]
[Result "1-0"]
[WhiteElo "2476"]
[BlackElo "2303"]
[TimeControl "180+1"]
[EndTime "11:36:27 PDT"]
[Termination "boasovietica won by checkmate"]

1. e4 {[%clk 0:03:00.9]} 1... e6 {[%clk 0:02:58.6]} 2. d4 {[%clk 0:02:59.9]}
2... d5 {[%clk 0:02:59.2]} 3. Nd2 {[%clk 0:02:59.7]} 3... h6 {[%clk 0:02:57.8]}
4. e5 {[%clk 0:02:53]} 4... c5 {[%clk 0:02:55.2]} 5. c3 {[%clk 0:02:52.6]} 5...
Nc6 {[%clk 0:02:54.2]} 6. Ndf3 {[%clk 0:02:42.9]} 6... Qb6 {[%clk 0:02:23.6]} 7.
Bd3 {[%clk 0:02:32.8]} 7... Bd7 {[%clk 0:02:15.8]} 8. Ne2 {[%clk 0:02:31]} 8...
cxd4 {[%clk 0:02:09.5]} 9. cxd4 {[%clk 0:02:20.1]} 9... Bb4+ {[%clk 0:02:08.8]}
10. Kf1 {[%clk 0:02:20.1]} 10... Rc8 {[%clk 0:01:47.3]} 11. h4 {[%clk
0:02:15.8]} 11... g6 {[%clk 0:01:35.4]} 12. Nf4 {[%clk 0:01:48.9]} 12... Bf8
{[%clk 0:01:31.6]} 13. Rh3 {[%clk 0:01:07.3]} 13... Nge7 {[%clk 0:01:29.1]} 14.
Bb1 {[%clk 0:01:03.1]} 14... Bg7 {[%clk 0:01:23.8]} 15. a3 {[%clk 0:00:58.6]}
15... Na5 {[%clk 0:00:45.3]} 16. b4 {[%clk 0:00:57.9]} 16... Nc4 {[%clk
0:00:44.6]} 17. Kg1 {[%clk 0:00:43.3]} 17... O-O {[%clk 0:00:40.2]} 18. h5
{[%clk 0:00:37.3]} 18... g5 {[%clk 0:00:39.9]} 19. Nxg5 {[%clk 0:00:36.8]} 19...
hxg5 {[%clk 0:00:40.1]} 20. h6 {[%clk 0:00:37.3]} 20... gxf4 {[%clk 0:00:27.2]}
21. hxg7 {[%clk 0:00:36.1]} 21... Kxg7 {[%clk 0:00:27.3]} 22. Rh7+ {[%clk
0:00:35.6]} 22... Kg8 {[%clk 0:00:20.2]} 23. Qh5 {[%clk 0:00:36]} 23... Nf5
{[%clk 0:00:14.5]} 24. Bxf5 {[%clk 0:00:25.7]} 24... exf5 {[%clk 0:00:14.9]} 25.
Rh6 {[%clk 0:00:22.7]} 25... Rc6 {[%clk 0:00:10.4]} 26. Rh8+ {[%clk 0:00:18.6]}
26... Kg7 {[%clk 0:00:10.4]} 27. Rxf8 {[%clk 0:00:17.9]} 27... Kxf8 {[%clk
0:00:10]} 28. Qh8+ {[%clk 0:00:18.2]} 28... Ke7 {[%clk 0:00:09.7]} 29. Bxf4
{[%clk 0:00:18.6]} 29... Rg6 {[%clk 0:00:07.1]} 30. Re1 {[%clk 0:00:13.4]} 30...
Nxa3 {[%clk 0:00:06.6]} 31. e6 {[%clk 0:00:12.8]} 31... Bxe6 {[%clk 0:00:05.2]}
32. Qb8 {[%clk 0:00:10.4]} 32... Nc4 {[%clk 0:00:04.8]} 33. Bc7 {[%clk
0:00:10.3]} 33... Qc6 {[%clk 0:00:04.4]} 34. Qd8# {[%clk 0:00:10.4]} 1-0

[Event "*** SCC Grand Prix: Titled Tuesday Blitz"]
[Site "Chess.com"]
[Date "2020.07.14"]
[Round "8"]
[White "sergivila"]
[Black "Ucitelot"]
[Result "0-1"]
[WhiteElo "2363"]
[BlackElo "2509"]
[TimeControl "180+1"]
[EndTime "11:36:28 PDT"]
[Termination "Ucitelot won by resignation"]

1. e4 {[%clk 0:03:00.9]} 1... c5 {[%clk 0:02:59.3]} 2. Nf3 {[%clk 0:03:00.8]}
2... Nc6 {[%clk 0:02:58.7]} 3. Bb5 {[%clk 0:02:58.2]} 3... g6 {[%clk 0:02:58.3]}
4. Bxc6 {[%clk 0:02:58]} 4... bxc6 {[%clk 0:02:57.9]} 5. O-O {[%clk 0:02:57.3]}
5... Bg7 {[%clk 0:02:57.6]} 6. Re1 {[%clk 0:02:57.5]} 6... f6 {[%clk 0:02:57.6]}
7. c3 {[%clk 0:02:56.9]} 7... Nh6 {[%clk 0:02:56.1]} 8. d4 {[%clk 0:02:53]} 8...
cxd4 {[%clk 0:02:56.1]} 9. cxd4 {[%clk 0:02:52.9]} 9... Nf7 {[%clk 0:02:56.6]}
10. Nc3 {[%clk 0:02:52.1]} 10... O-O {[%clk 0:02:55.7]} 11. b3 {[%clk
0:02:50.3]} 11... d6 {[%clk 0:02:55.5]} 12. Bb2 {[%clk 0:02:47.1]} 12... Qa5
{[%clk 0:02:40.7]} 13. h3 {[%clk 0:02:42]} 13... Bd7 {[%clk 0:02:38]} 14. Rc1
{[%clk 0:02:39.4]} 14... Rab8 {[%clk 0:02:34.6]} 15. Qd3 {[%clk 0:02:33.6]}
15... Bc8 {[%clk 0:02:26.8]} 16. Nd2 {[%clk 0:02:29.6]} 16... Ba6 {[%clk
0:02:25.9]} 17. Qc2 {[%clk 0:02:26.5]} 17... Rfc8 {[%clk 0:02:24.9]} 18. a3
{[%clk 0:02:15.3]} 18... Bh6 {[%clk 0:02:24.4]} 19. b4 {[%clk 0:02:14.1]} 19...
Qh5 {[%clk 0:02:23.5]} 20. Rcd1 {[%clk 0:02:09]} 20... Ng5 {[%clk 0:02:00.4]}
21. Nf1 {[%clk 0:01:56]} 21... Qh4 {[%clk 0:01:54.9]} 22. Ng3 {[%clk 0:01:48.5]}
22... Ne6 {[%clk 0:01:51.1]} 23. e5 {[%clk 0:01:43.5]} 23... fxe5 {[%clk
0:01:48.1]} 24. dxe5 {[%clk 0:01:42.3]} 24... d5 {[%clk 0:01:48.4]} 25. Nce2
{[%clk 0:01:39.4]} 25... Bc4 {[%clk 0:01:36.1]} 26. Nd4 {[%clk 0:01:36.7]} 26...
Nxd4 {[%clk 0:01:33.6]} 27. Rxd4 {[%clk 0:01:36.4]} 27... Bf4 {[%clk 0:01:25.6]}
28. Bc1 {[%clk 0:01:22.5]} 28... Rf8 {[%clk 0:01:23.3]} 29. Qc3 {[%clk
0:00:34.1]} 29... Qg5 {[%clk 0:01:19.3]} 30. Bxf4 {[%clk 0:00:26.7]} 30... Rxf4
{[%clk 0:01:18.5]} 31. Nf1 {[%clk 0:00:25.1]} 31... Rbf8 {[%clk 0:01:15]} 32. f3
{[%clk 0:00:24.8]} 32... Bxf1 {[%clk 0:01:12.1]} 33. Kxf1 {[%clk 0:00:22.8]}
33... R4f5 {[%clk 0:00:58.5]} 34. Qxc6 {[%clk 0:00:19.7]} 34... Rxf3+ {[%clk
0:00:56.3]} 35. Kg1 {[%clk 0:00:18.5]} 35... Rf1+ {[%clk 0:00:44.5]} 36. Rxf1
{[%clk 0:00:17.7]} 36... Qe3+ {[%clk 0:00:44.4]} 37. Kh2 {[%clk 0:00:17.1]}
37... Qxe5+ {[%clk 0:00:44.1]} 38. Rdf4 {[%clk 0:00:14.4]} 38... Rxf4 {[%clk
0:00:42.9]} 39. Rxf4 {[%clk 0:00:15]} 39... Qxf4+ {[%clk 0:00:42.8]} 40. Kh1
{[%clk 0:00:15.6]} 40... d4 {[%clk 0:00:36.9]} 41. Qd5+ {[%clk 0:00:13.9]} 41...
Kg7 {[%clk 0:00:34.9]} 42. b5 {[%clk 0:00:13.8]} 42... Qf1+ {[%clk 0:00:27.8]}
43. Kh2 {[%clk 0:00:13.8]} 43... d3 {[%clk 0:00:27.9]} 44. Qe5+ {[%clk
0:00:13.6]} 44... Qf6 {[%clk 0:00:26.3]} 45. Qd5 {[%clk 0:00:13]} 45... Qd6+
{[%clk 0:00:24.4]} 0-1

[Event "*** SCC Grand Prix: Titled Tuesday Blitz"]
[Site "Chess.com"]
[Date "2020.07.14"]
[Round "8"]
[White "doctorcristian"]
[Black "natelleka"]
[Result "1-0"]
[WhiteElo "2411"]
[BlackElo "2140"]
[TimeControl "180+1"]
[EndTime "11:36:28 PDT"]
[Termination "doctorcristian won on time"]

1. d4 {[%clk 0:03:00.9]} 1... d5 {[%clk 0:02:59.6]} 2. Bf4 {[%clk 0:02:58.9]}
2... Nc6 {[%clk 0:02:56]} 3. e3 {[%clk 0:02:55.8]} 3... Bf5 {[%clk 0:02:47.4]}
4. Nc3 {[%clk 0:02:40]} 4... e6 {[%clk 0:02:28.9]} 5. a3 {[%clk 0:02:37.8]} 5...
Bd6 {[%clk 0:02:19.9]} 6. Bb5 {[%clk 0:02:27.9]} 6... Nf6 {[%clk 0:02:10.9]} 7.
Nf3 {[%clk 0:02:23.1]} 7... O-O {[%clk 0:02:05.2]} 8. Bxc6 {[%clk 0:02:21.5]}
8... bxc6 {[%clk 0:02:04.4]} 9. O-O {[%clk 0:02:21]} 9... c5 {[%clk 0:01:53.4]}
10. dxc5 {[%clk 0:02:16.6]} 10... Bxc5 {[%clk 0:01:51.3]} 11. Nd4 {[%clk
0:02:13.5]} 11... Bg6 {[%clk 0:01:43]} 12. Nc6 {[%clk 0:01:48.7]} 12... Qe8
{[%clk 0:01:41.7]} 13. Ne5 {[%clk 0:01:46.9]} 13... Bd6 {[%clk 0:01:38.3]} 14.
b4 {[%clk 0:01:36.7]} 14... Bxe5 {[%clk 0:01:17.8]} 15. Bxe5 {[%clk 0:01:34.9]}
15... Nd7 {[%clk 0:01:17.6]} 16. Bxc7 {[%clk 0:01:34.4]} 16... Qc8 {[%clk
0:00:57.4]} 17. Bd6 {[%clk 0:01:02.1]} 17... Qxc3 {[%clk 0:00:56.4]} 18. Bxf8
{[%clk 0:01:02.2]} 18... Rxf8 {[%clk 0:00:54.9]} 19. Qd4 {[%clk 0:01:02.1]}
19... Qxd4 {[%clk 0:00:47.2]} 20. exd4 {[%clk 0:01:00.4]} 20... Rc8 {[%clk
0:00:30.5]} 21. Ra2 {[%clk 0:00:58.4]} 21... Nb6 {[%clk 0:00:26.1]} 22. a4
{[%clk 0:00:56.4]} 22... Rxc2 {[%clk 0:00:14.9]} 23. Rxc2 {[%clk 0:00:55.5]}
23... Bxc2 {[%clk 0:00:14.7]} 24. a5 {[%clk 0:00:55.9]} 24... Nc4 {[%clk
0:00:13]} 25. Ra1 {[%clk 0:00:55.7]} 25... Kf8 {[%clk 0:00:08.5]} 26. b5 {[%clk
0:00:55.9]} 26... Ke7 {[%clk 0:00:06.6]} 27. b6 {[%clk 0:00:55]} 27... Nxb6
{[%clk 0:00:04.5]} 28. axb6 {[%clk 0:00:54.6]} 28... axb6 {[%clk 0:00:04.9]} 29.
Ra7+ {[%clk 0:00:54.6]} 29... Kf6 {[%clk 0:00:05]} 30. Rb7 {[%clk 0:00:54.5]}
30... Kg6 {[%clk 0:00:04.5]} 31. f3 {[%clk 0:00:53.4]} 31... Bd3 {[%clk
0:00:04.7]} 32. Rxb6 {[%clk 0:00:51.9]} 32... Kf6 {[%clk 0:00:04.6]} 33. Kf2
{[%clk 0:00:52.1]} 33... Ke7 {[%clk 0:00:04.6]} 34. Ke3 {[%clk 0:00:52.2]} 34...
Bg6 {[%clk 0:00:04.8]} 35. Rb7+ {[%clk 0:00:52.3]} 35... Kd6 {[%clk 0:00:04.9]}
36. h4 {[%clk 0:00:52.1]} 36... Kc6 {[%clk 0:00:05.1]} 37. Ra7 {[%clk
0:00:51.7]} 37... Kb6 {[%clk 0:00:05.4]} 38. Re7 {[%clk 0:00:51.6]} 38... h5
{[%clk 0:00:05.6]} 39. g4 {[%clk 0:00:51.2]} 39... hxg4 {[%clk 0:00:05.3]} 40.
fxg4 {[%clk 0:00:50.4]} 40... Kc6 {[%clk 0:00:04.6]} 41. h5 {[%clk 0:00:50.6]}
41... Kd6 {[%clk 0:00:05]} 42. Ra7 {[%clk 0:00:46.3]} 42... Bb1 {[%clk
0:00:03.4]} 43. Rxf7 {[%clk 0:00:46.4]} 43... g6 {[%clk 0:00:03.6]} 44. h6
{[%clk 0:00:46.4]} 44... g5 {[%clk 0:00:03.6]} 45. h7 {[%clk 0:00:46.8]} 45...
Bxh7 {[%clk 0:00:02.9]} 46. Rxh7 {[%clk 0:00:47]} 1-0